Cogmind - Beta 9.6 @@@ ROGUE MODE // 2020.07.25 @ 03:03:52 Player: Phillammon Result: Destroyed by as-25837 with Assembled Rifle Performance ------------- Evolutions (0) 0 Regions Visited (2) 400 Robots Destroyed (7) 35 Value Destroyed (213) 213 Prototype IDs (0) 0 Alien Tech Used (0) 0 Bonus (0) 0 TOTAL SCORE: 648 Bonus ------- None Cogmind --------- Core Integrity 0/250 Matter 292/300 Energy 100/100 System Corruption 6% Temperature Cool (0) Movement Core (550) Ox10 Location -10/Mines Parts ------- > --- POWER (1) -------- (None) > --- PROPULSION (2) --- (None) > --- UTILITY (2) ------ High-capacity Storage Unit Signal Interpreter > --- WEAPON (2) ------- (None) > --- INVENTORY (12) --- Small Storage Unit Sensor Array Mining Laser Peak State ------------ > --- POWER ------------ Light Ion Engine > --- PROPULSION ------- Light Treads Light Treads > --- UTILITY ---------- Small Storage Unit Signal Interpreter > --- WEAPON ----------- EM Pulse Gun Assault Rifle > --- INVENTORY -------- Sensor Array Assault Rifle [Rating: 7] Favorites ----------- Power Light Ion Engine Engine Light Ion Engine Propulsion Light Treads Treads Light Treads Leg Aluminum Leg Utility Signal Interpreter Device Sensor Array Storage Small Storage Unit Processor Signal Interpreter Weapon Assault Rifle Energy Gun EM Pulse Gun Ballistic Gun Assault Rifle Build | -11 -10 -10 ------- Run | Scr Mat Min Slots Evolved . | . . . Power . | . . . Propulsion . | . . . Utility . | . . . Weapon . | . . . Parts Attached 8 | 2 4 2 Power 1 | . 1 . Engine 1 | . 1 . Core . | . . . Reactor . | . . . Propulsion 2 | 2 . . Treads 2 | 2 . . Leg . | . . . Wheel . | . . . Hover . | . . . Flight . | . . . Utility 3 | . 2 1 Device 1 | . 1 . Storage 1 | . . 1 Processor 1 | . 1 . Hackware . | . . . Protection . | . . . Artifact . | . . . Weapon 2 | . 1 1 Energy Gun . | . . . Energy Cannon . | . . . Ballistic Gun 2 | . 1 1 Ballistic Cannon . | . . . Launcher . | . . . Special Weapon . | . . . Impact Weapon . | . . . Slashing Weapon . | . . . Piercing Weapon . | . . . Special Melee Weapon . | . . . Unidentified Prototypes . | . . . Parts Lost 8 | . 2 6 Power 2 | . 1 1 Propulsion 2 | . . 2 Utility . | . . . Weapon 4 | . 1 3 Highest Loss Streak 4 | . 2 4 Average Slot Usage (%) 76 | . 89 58 Engine 8 | . 13 3 Treads 20 | . 28 10 Device 6 | . 5 7 Storage 7 | . 8 6 Processor 9 | . 5 14 Energy Gun 9 | . 14 3 Ballistic Gun 13 | . 13 12 Naked Turns . | . . . Heaviest Build 35 | 11 11 35 Greatest Support 40 | 40 40 40 Greatest Overweight (x) 11 | . . 11 Average Overweight (x) . | . . 1 Largest Inventory Capacity 12 | 6 6 12 Average Capacity 6 | 6 5 7 Most Carried 6 | 6 4 4 Average Carried 2 | 4 1 3 Final Capacity 12 | 6 4 12 Final Carried 3 | 1 3 3 Class Distribution -------------------- 100% | Mutant Dominant Class ---------------- Mutant | -10/Materials Mutant | -10/Mines Resources | -11 -10 -10 ----------- Run | Scr Mat Min Matter Collected 296 | 200 86 10 Remotely . | . . . Salvage Created 276 | . 276 . Parts 14 | . 14 . Haulers Intercepted 1 | . 1 . Recyclers Shooed . | . . . Parts Field Recycled . | . . . Retrieved Matter . | . . . Parts Self-Destructed . | . . . Prevented . | . . . Kills | -11 -10 -10 ------- Run | Scr Mat Min Combat Hostiles Destroyed 4 | . 4 . Guns 2 | . 2 . AOE 2 | . 2 . Classes Destroyed 3 | . 3 . Hauler 1 | . 1 . Watcher 2 | . 2 . Grunt 4 | . 4 . Best Kill Streak 6 | . 6 . Combat Bots Only 4 | . 4 . Max Kills in Single Turn 3 | . 3 . Gunslinging . | . . . Exploded 2 | . 2 . Melee . | . . . Uniques/NPCs Destroyed . | . . . Combat | -11 -10 -10 -------- Run | Scr Mat Min Damage Taken 922 | . 343 579 Core 250 | . 6 244 Absorbed by Shields . | . . . Core Remaining (%) 100 | 100 . . Volleys Fired 13 | . 12 1 Largest 2 | . 2 1 Hottest 60 | . 60 20 Shots Fired 25 | . 24 1 Gun 25 | . 24 1 Cannon . | . . . Launcher . | . . . Special . | . . . Kinetic 13 | . 12 1 Thermal . | . . . Explosive . | . . . Electromagnetic 12 | . 12 . Robot Hit Streak 11 | . 11 . Robot Miss Streak 2 | . 2 1 Penetration Max . | . . . Secondary Targets 2 | . 2 . Max Gunslinging Chain 1 | . 1 . Shots Hit Robots 20 | . 20 . Core Hits 14 | . 14 . Critical Hits . | . . . Critical Kills . | . . . Critical Parts Destroyed . | . . . Melee Attacks . | . . . Impact . | . . . Slashing . | . . . Piercing . | . . . Sneak Attacks . | . . . Combat Hostiles . | . . . Follow-up Attacks . | . . . Damage Inflicted 510 | . 510 . Guns 269 | . 269 . Cannons . | . . . Explosions 241 | . 241 . Melee . | . . . Ramming . | . . . Kinetic 112 | . 112 . Thermal 114 | . 114 . Explosive . | . . . Electromagnetic 284 | . 284 . Impact . | . . . Slashing . | . . . Piercing . | . . . Highest Corruption 6 | . 1 6 Average Corruption 3 | . 1 4 Corruption Purged . | . . . Effects 3 | . 1 2 Message Errors 1 | . 1 . Matter Fused 1 | . . 1 Heat Flow Errors 1 | . . 1 Overload Shots . | . . . Overflow Damage 36 | . 36 . Projectiles . | . . . Explosions 36 | . 36 . Melee . | . . . Knockbacks . | . . . Impact . | . . . Kinetic . | . . . Secondary . | . . . Self-Inflicted Damage 128 | . 128 . Shots 4 | . 4 . Rammed 1 | . . 1 Targets Rammed 1 | . . 1 Kicked . | . . . Crushed . | . . . Highest Temperature 109 | . 109 103 Average Temperature 42 | . 41 46 Received Heat Transfer 240 | . 120 120 Siege Activations . | . . . Robots Corrupted . | . . . Combat Hostiles . | . . . Parts Fried . | . . . Impact Corruptions . | . . . Robots Melted . | . . . Combat Hostiles . | . . . Parts Melted 1 | . 1 . Heat Transferred 100 | . 100 . Parts Sabotaged . | . . . Parts Stolen . | . . . Parts Stripped . | . . . Power Chain Reactions 2 | . 2 . Missiles Intercepted . | . . . Alert | -11 -10 -10 ------- Run | Scr Mat Min Peak Influence 176 | . 176 68 Average Influence 51 | . 66 35 Maximum Alert Level . | . . . Low Security (%) 100 | 100 100 100 Level 1 . | . . . Level 2 . | . . . Level 3 . | . . . Level 4 . | . . . Level 5 . | . . . High Security . | . . . Max Security . | . . . Squads Dispatched 2 | . 2 . Investigation 1 | . 1 . Extermination . | . . . Reinforcement 1 | . 1 . Assault . | . . . Garrison . | . . . Intercept . | . . . Construction Impeded . | . . . Haulers Reinforced . | . . . Stealth | -11 -10 -10 --------- Run | Scr Mat Min Distress Signals 1 | . 1 . Communications Jammed . | . . . Distress Signals . | . . . Times Spotted 34 | . 9 25 Peak Tracking Total 17 | . 5 17 Tactical Retreats 5 | . 1 4 Traps | -11 -10 -10 ------- Run | Scr Mat Min Traps Triggered 1 | . 1 . Indirectly . | . . . Trap Hack Attempts . | . . . Triggered . | . . . Disarmed . | . . . Reprogrammed . | . . . Reused . | . . . Traps Extracted . | . . . Installed . | . . . Triggered . | . . . Machines | -11 -10 -10 ---------- Run | Scr Mat Min Machines Disabled 3 | . 3 . Max in Single Turn 3 | . 3 . Machines Sabotaged . | . . . Garrisons Compromised . | . . . Overloaded Fab Kills . | . . . Fab Network Shutdowns . | . . . Hacking | -11 -10 -10 --------- Run | Scr Mat Min Machines Accessed . | . . . Terminals . | . . . Fabricators . | . . . Repair Stations . | . . . Recycling Units . | . . . Scanalyzers . | . . . Garrison Access . | . . . Total Hacks . | . . . Successful . | . . . Failed . | . . . Catastrophic . | . . . Database Lockouts . | . . . Manual . | . . . Terminals . | . . . Fabricators . | . . . Repair Stations . | . . . Recycling Units . | . . . Scanalyzers . | . . . Garrison Access . | . . . Terminal Hacks . | . . . Fabricator Hacks . | . . . Repair Station Hacks . | . . . Recycling Unit Hacks . | . . . Scanalyzer . | . . . Garrison Access Hacks . | . . . Unauthorized Hacks . | . . . Terminals . | . . . Fabricators . | . . . Repair Stations . | . . . Recycling Units . | . . . Scanalyzers . | . . . Garrison Access . | . . . Data Cores Recovered . | . . . Used . | . . . Hacking Detections . | . . . Full Trace Events . | . . . Feedback Events . | . . . Feedback Blocked . | . . . Robot Schematics Acquired . | . . . Robots Built . | . . . Matter . | . . . Time . | . . . Total Robot Build Rating . | . . . Part Schematics Acquired . | . . . Parts Built . | . . . Matter . | . . . Time . | . . . Total Part Build Rating . | . . . Parts Repaired . | . . . Time . | . . . Parts Recycled . | . . . Recycled Matter . | . . . Retrieved Matter . | . . . Retrieved Components . | . . . Parts Scanalyzed . | . . . Part Schematics Acquired . | . . . Parts Damaged . | . . . Bothacking | -11 -10 -10 ------------ Run | Scr Mat Min Used RIF Installer . | . . . Robots Hacked . | . . . Non-combat . | . . . Combat . | . . . Robot Hacks Applied . | . . . Relay Couplers Released . | . . . Robots Rewired . | . . . Allies Hacked . | . . . Hacks Repelled . | . . . Allies | -11 -10 -10 -------- Run | Scr Mat Min Total Allies . | . . . Largest Group . | . . . Highest-Rated Group . | . . . Highest-Rated Ally . | . . . Total Orders . | . . . Ally Attacks . | . . . Total Damage . | . . . Kills . | . . . Allies Corrupted . | . . . Allies Melted . | . . . Intel | -11 -10 -10 ------- Run | Scr Mat Min Robot Analysis Total . | . . . Derelict Logs Recovered . | . . . Drone Launches . | . . . Drone Recoveries . | . . . Exploration | -11 -10 -10 ------------- Run | Scr Mat Min Turns Passed 307 | 5 167 135 Spaces Moved 154 | 1 76 77 Core 45 | . . 45 Treads 109 | 1 76 32 Legs . | . . . Wheels . | . . . Hover . | . . . Flight . | . . . Fastest Speed 50 | 160 160 50 Average Speed 164 | 160 160 169 Slowest Speed 600 | 160 160 600 Overloaded Moves . | . . . Propulsion Burnouts . | . . . Robots Hopped . | . . . Cave-ins Triggered . | . . . Exploration Rate (%) 15 | 2 20 24 Regions Visited 2 Branch Regions 1 Pre-discovered Areas . | . . . Known Exits Taken 1 | . 1 . Unknown Exits Taken 1 | 1 . . Scrap Searched 1 | . . 1 Spaces Dug . | . . . Terrain Destroyed 5 | . 5 . Melee . | . . . Projectile . | . . . AOE 5 | . 5 . Actions | -11 -10 -10 --------- Run | Scr Mat Min Total 186 | 7 97 82 Wait 1 | . 1 . Move 152 | . 75 77 Hop . | . . . Pick Up 6 | . 5 1 Fast Attach . | . . . Attach 6 | 2 3 1 Detach . | . . . Swap 2 | . 1 1 Drop 5 | 5 . . Fire 13 | . 12 1 Melee . | . . . Ram . | . . . Kick . | . . . Crush 1 | . . 1 Escape Stasis . | . . . Rewire . | . . . Trap . | . . . Miscellaneous . | . . . Route ------- -11/Scrapyard -10/Materials -10/Mines History --------- Turn | Location | Event 6 | -11/Scrapyard | Discovered new exit (range 0) 6 | -11/Scrapyard | Entered Materials 98 | -10/Materials | Discovered new exit (range 13) 164 | -10/Materials | Identified exit to Mines 173 | -10/Materials | Entered Mines 174 | -10/Mines | Assembled infested the area 179 | -10/Mines | Assisted by a Guerilla fighting off Assembled 257 | -10/Mines | Lost 4 parts (1p2n1w) 273 | -10/Mines | Core integrity fell below 50% 296 | -10/Mines | Core integrity fell below 20% 308 | -10/Mines | Destroyed by as-25837 with Assembled Rifle Last Messages --------------- 00203_ EM Pulse Gun destroyed. 00203_ System corrupted by crushing effect (+2). 00203_ System corrupted by crushing effect (+3). 00221_ Lgt. Treads destroyed. 00226_ Critical hit. 00226_ Lgt. Treads destroyed. 00242_ Searching scrap... 00242_ Found 27 Matter. 00242_ Found Welding Torch. 00242_ Found ECM Suite. 00242_ Found Lrg. Storage Unit. 00242_ Found Lgt. Assault Rifle. 00243_ Acquired Lgt. Assault Rifle. 00245_ Acquired 10 matter. 00263_ Assault Rifle destroyed. 00265_ System corrupted: Heat flow error (+128). 00265_ K-01 Serf collects debris. 00274_ K-01 Serf destroyed. 00285_ System corrupted: Matter fused (-7). 00287_ Lgt. Assault Rifle destroyed. Map ----- +----------------------------------------------------+ | ???????????????## ##### #??? | | ???????????????# ####?# ##??? | | ???????????????# ##?###???? | | ???????????????# #???????? | | ???????????????## ##??????? | | ?????????????#### ##?????? | | ?????????????# ##????? | | ?????????????# ## ##???? | | ???????????? ?# ##??? | | ??????????# ??# ##?? | | ??????????# ???# ### ## #?? | | ??????????#????# ??####### ##?? | | ??????????????# ????????# ##??? | | ??????????????# #?????????# ##???? | | ??????????????# ??????????# #????? | | ??????????????????????????# #????? | | ??????????????????????###?# #????? | | ?????????????????????# ### #????? | | ????????????????????# ## #????? | | ???????????????????## ## #????? | | ????????????????#### ## #????? | | ?????????###???## #?# #????? | | ????????? #??## #### #????? | | ?????????# #??# #?# #????? | | ?????????#t#??# ### ####????? | | ?????????#@#???# ! #???????? | | ?????????#a##### *% #####???????? | | ?????????# a |%! #???????????? | | ?????????####### ! ##???????????? | | ???????????????# ##????????????? | | ???????????????## ##?????????????? | | ????????????????####??????????????? | | ??????????????????????????????????? | | ??????????????????????????????????? | | ??????????????????????????????????? | | ??????????????????????????????????? | | ??????????????????????????????????? | | ??????????????????????????????????? | | ??????????????????????????????????? | | ??????????????????????????????????? | | ??????????????????????????????????? | | ??????????????????????????????????? | | ??????????????????????????????????? | | ??????????????????????????????????? | | ??????????????????????????????????? | | ??????????????????????????????????? | | ??????????????????????????????????? | | ??????????????????????????????????? | | ??????????????????????????????????? | | ??????????????????????????????????? | +----------------------------------------------------+ Best States ------------- Heat Dissipation 25 Energy Generation 10 Energy Capacity 250 Matter Stores 300 Matter Capacity 300 Sight Range 16 Robot Scan Range 10 Terrain Scan Density 10 Evasion (%) 50 Recoil Reduction 2 Item Schematics ----------------- None Robot Schematics ------------------ None Fabricated ------------ Nothing Alien Tech Used ----------------- None Achievements -------------- None Challenges ------------ None Game ------ Seed HardenedBurstThruster Manual? 0 Play Time 00:06:18 Cumulative 11.7 hours Start 2020.07.25 @ 02:59:44 End 2020.07.25 @ 03:03:52 Sessions 1 Manual Loads 0 Difficulty Rogue Special Mode None Game No. 33 Rogue 33 Adventurer 0 Explorer 0 Win Type - Total 0 Types 0/0/0/0/0/0/0 Lore% 15 Gallery% 21 Achievement% 18 Wizard Run 0 Options --------- ASCII 0 Keyboard 0 Movement Mouse Keybinds 0 Fullscreen 1 Font 18/SmallcapsGlow Map View 76x50 Tactical HUD 1 Map Filters NONE Filters NONE Steam 0 RUN: 0e8fc096-05b7-48ab-9eb2-5d2b83a1c46e